fUST/lending_fUST_20250416
["ID","MTS","AMOUNT","RATE_DAILY","PERIOD"]
[358155101,1744789853943,-500.0,0.00041095,14]
[358155102,1744789853953,-500.0,0.00041095,14]
[358155103,1744789853962,-674.15,0.00041095,14]
[358155104,1744789853972,-626.8,0.00041095,14]
[358155105,1744789853981,-504.36,0.00041095,14]
[358155106,1744789853990,-643.73,0.00041095,14]
[358155107,1744789854000,-500.0,0.00041095,14]
[358155108,1744789854009,-755.0,0.00041095,14]
[358155109,1744789854019,-500.0,0.00041095,14]
[358155110,1744789854028,-500.0,0.00041095,14]
[358155111,1744789854038,-500.0,0.00041095,14]
[358155112,1744789854048,-1725.24,0.00041095,14]
[358155113,1744789854058,-500.0,0.00041095,14]
[358155114,1744789854068,-698.73,0.00041095,14]
[358155115,1744789854078,-500.0,0.00041095,14]
[358155116,1744789854087,-500.0,0.00041095,14]
[358155117,1744789854097,-1572.75,0.00041095,14]
[358155118,1744789854107,-500.0,0.00041095,14]
[358155119,1744789854116,-500.0,0.00041095,14]
[358155120,1744789854126,-500.0,0.00041095,14]
[358155121,1744789854137,-2019.47,0.00041095,14]
[358155122,1744789854149,-500.0,0.00041095,14]
[358155123,1744789854159,-500.0,0.00041095,14]
[358155124,1744789854169,-500.0,0.00041095,14]
[358155125,1744789854179,-500.0,0.00041095,14]
[358155126,1744789854189,-500.0,0.00041095,14]
[358155127,1744789854199,-1395.93,0.00041095,14]
[358155128,1744789854209,-500.0,0.00041095,14]
[358155129,1744789854218,-500.0,0.00041095,14]
[358155130,1744789854228,-500.0,0.00041095,14]
[358155131,1744789854238,-1370.01,0.00041095,14]
[358155132,1744789854248,-646.77,0.00041095,14]
[358155133,1744789854258,-500.0,0.00041095,14]
[358155134,1744789854268,-500.0,0.00041095,14]
[358155135,1744789854278,-754.11,0.00041095,14]
[358155136,1744789854287,-500.0,0.00041095,14]
[358155137,1744789854297,-500.0,0.00041095,14]
[358155138,1744789854307,-500.0,0.00041095,14]
[358155139,1744789854316,-684.25,0.00041095,14]
[358155140,1744789854326,-500.0,0.00041095,14]
[358155141,1744789854335,-1000.0,0.00041095,14]
[358155142,1744789854347,-807.82,0.00041095,14]
[358155143,1744789854357,-500.0,0.00041095,14]
[358155144,1744789854366,-536.02,0.00041095,14]
[358155145,1744789854376,-1134.98,0.00041095,14]
[358155146,1744789854387,-500.0,0.00041095,14]
[358155147,1744789854396,-500.0,0.00041095,14]
[358155148,1744789854406,-500.0,0.00041095,14]
[358155149,1744789854416,-500.0,0.00041095,14]
[358155150,1744789854426,-1982.76,0.00041095,14]
[358155151,1744789854436,-500.0,0.00041095,14]
[358155152,1744789854446,-500.0,0.00041095,14]
[358155153,1744789854456,-500.0,0.00041095,14]
[358155154,1744789854466,-500.0,0.00041095,14]
[358155155,1744789854476,-503.81,0.00041095,14]
[358155156,1744789854486,-500.0,0.00041095,14]
[358155157,1744789854496,-899.17,0.00041095,14]
[358155158,1744789854506,-509.15849397,0.00041095,14]
[358155159,1744789854517,-500.0,0.00041095,14]
[358155160,1744789854526,-500.0,0.00041095,14]
[358155161,1744789854536,-500.0,0.00041095,14]
[358155162,1744789854547,-972.63,0.00041095,14]
[358155163,1744789854556,-500.0,0.00041095,14]
[358155164,1744789854566,-6047.77,0.00041095,14]
[358155165,1744789854576,-167.80897222,0.00041095,14]
[358155166,1744789854586,-500.0,0.00041095,14]
[358155167,1744789854597,-500.0,0.00041095,14]
[358155168,1744789854607,-500.0,0.00041095,14]
[358155169,1744789854617,-1472.23,0.00041095,14]
[358155170,1744789854627,-500.0,0.00041095,14]
[358155171,1744789854638,-2064.85,0.00041095,14]
[358155172,1744789854648,-500.0,0.00041095,14]
[358155173,1744789854658,-1884.68,0.00041095,14]
[358155174,1744789854668,-2161.48,0.00041095,14]
[358155175,1744789854678,-500.0,0.00041095,14]
[358155176,1744789854688,-570.55391199,0.00041095,14]
[358155177,1744789854697,-500.0,0.00041095,14]
[358155178,1744789854707,-1817.01,0.00041095,14]
[358155179,1744789854717,-500.0,0.00041095,14]
[358155180,1744789854727,-500.0,0.00041095,14]
[358155181,1744789854736,-500.0,0.00041095,120]
[358155182,1744789854747,-187.58180092,0.00041095,14]
[358155183,1744789854757,-500.0,0.00041095,14]
[358155184,1744789854767,-1959.3,0.00041095,14]
[358155185,1744789854776,-565.13,0.00041095,14]
[358155186,1744789854786,-500.0,0.00041095,14]
[358155187,1744789854795,-500.0,0.00041095,14]
[358155188,1744789854805,-2850.88,0.00041095,14]
[358155189,1744789854814,-500.0,0.00041095,14]
[358155190,1744789854824,-2298.1,0.00041095,14]
[358155191,1744789854834,-500.0,0.00041095,14]
[358155192,1744789854843,-627.79,0.00041095,14]
[358155193,1744789854853,-500.0,0.00041095,14]
[358155194,1744789854862,-739.99,0.00041095,14]
[358155195,1744789854872,-500.0,0.00041095,14]
[358155196,1744789854882,-2913.13,0.00041095,14]
[358155197,1744789854891,-1267.81,0.00041095,14]
[358155198,1744789854900,-500.0,0.00041095,14]
[358155199,1744789854910,-500.0,0.00041095,14]
[358155200,1744789854919,-500.0,0.00041095,14]
[358155201,1744789854929,-739.61,0.00041095,14]
[358155202,1744789854938,-500.0,0.00041095,14]
[358155203,1744789854947,-500.0,0.00041095,14]
[358155204,1744789854958,-10412.97,0.00041095,14]
[358155205,1744789854967,-500.0,0.00041095,14]
[358155206,1744789854977,-617.09046709,0.00041095,14]
[358155207,1744789854987,-500.0,0.00041095,14]
[358155208,1744789854996,-1103.3,0.00041095,14]
[358155209,1744789855006,-650.51,0.00041095,14]
[358155210,1744789855015,-536.61,0.00041095,14]
[358155211,1744789855025,-500.0,0.00041095,14]
[358155212,1744789855034,-527.67,0.00041095,14]
[358155213,1744789855044,-2352.11,0.00041095,14]
[358155214,1744789855053,-1409.14,0.00041095,14]
[358155215,1744789855063,-500.0,0.00041095,14]
[358155216,1744789855073,-500.0,0.00041095,14]
[358155217,1744789855082,-1591.65,0.00041095,14]
[358155218,1744789855092,-1578.19,0.00041095,14]
[358155219,1744789855101,-500.0,0.00041095,14]
[358155220,1744789855111,-500.0,0.00041095,14]
[358155221,1744789855120,-1326.67,0.00041095,14]
[358155222,1744789855130,-2123.59,0.00041095,14]
[358155223,1744789855140,-500.0,0.00041095,14]
[358155224,1744789855151,-1213.85,0.00041095,14]
[358155225,1744789855160,-500.0,0.00041095,14]
[358155226,1744789855170,-500.0,0.00041095,14]
[358155227,1744789855180,-234.83550028,0.00041095,14]
[358155228,1744789855190,-500.0,0.00041095,14]
[358155229,1744789855200,-572.4,0.00041095,14]
[358155230,1744789855210,-500.0,0.00041095,14]
[358155231,1744789855220,-570.89,0.00041095,14]
[358155232,1744789855230,-500.0,0.00041095,14]
[358155233,1744789855240,-156.42683286,0.00041095,14]
[358155234,1744789855250,-500.0,0.00041095,14]
[358155235,1744789855260,-543.24,0.00041095,14]
[358155236,1744789855270,-500.0,0.00041095,14]
[358155237,1744789855280,-500.0,0.00041095,14]
[358155238,1744789855291,-1275.68,0.00041095,14]
[358155239,1744789855301,-1664.83,0.00041095,14]
[358155240,1744789855311,-1517.43,0.00041095,14]
[358155241,1744789855321,-2344.87,0.00041095,14]
[358155242,1744789855330,-500.0,0.00041095,14]
[358155243,1744789855340,-500.0,0.00041095,14]
[358155244,1744789855354,-500.0,0.00041095,14]
[358155245,1744789855365,-560.77,0.00041095,14]
[358155246,1744789855375,-277.3711418,0.00041095,14]
[358155247,1744789855975,-500.0,0.00038899,15]
[358155248,1744789855985,-222.6288582,0.00041095,14]
[358155249,1744789855995,-500.0,0.00041095,14]
[358155250,1744789856005,-544.08,0.00041095,14]
[358155251,1744789856015,-253.83867182,0.00041095,14]
[358155252,1744789856027,-275.61132818,0.00041095,14]
[358155253,1744789856037,-500.0,0.00041095,14]
[358155254,1744789856047,-500.0,0.00041095,14]
[358155255,1744789856057,-1110.36,0.00041095,14]
[358155256,1744789856066,-511.08292129,0.00041095,14]
[358155257,1744789856076,-896.4,0.00041095,14]
[358155258,1744789856086,-500.0,0.00041095,14]
[358155259,1744789856095,-550.07,0.00041095,14]
[358155260,1744789856105,-850.48,0.00041095,14]
[358155261,1744789856115,-500.0,0.00041095,14]
[358155262,1744789856124,-543.84,0.00041095,14]
[358155263,1744789856133,-500.0,0.00041095,14]
[358155264,1744789856144,-562.90691167,0.00041095,14]
[358155265,1744789856154,-1659.04,0.00041095,14]
[358155266,1744789856163,-910.24,0.00041095,14]
[358155267,1744789856173,-1521.46312021,0.00041095,14]
[358155268,1744789856183,-500.0,0.00041095,14]
[358155269,1744789856192,-779.21,0.00041095,14]
[358155270,1744789856202,-907.54,0.00041095,14]
[358155271,1744789856212,-1036.57,0.00041095,14]
[358155272,1744789856222,-2832.17,0.00041095,14]
[358155273,1744789856231,-850.21,0.00041095,14]
[358155274,1744789856240,-500.0,0.00041095,14]
[358155275,1744789856250,-333.91189065,0.00041095,14]
[358155282,1744790383385,10000.0,0.00033,30]
[358155292,1744790562774,-492.43932044,0.000251,2]
[358155295,1744790651837,-300.0,0.00027,3]
[358155296,1744790761380,724.456,0.00033,30]
[358155318,1744791033005,-521.61715114,0.00025,2]
[358155319,1744791033109,-3289.41138017,0.00025,2]
[358155320,1744791033119,-500.0,0.00025099,2]
[358155321,1744791033129,-500.0,0.00025099,2]
[358155322,1744791033139,-500.0,0.00025099,2]
[358155323,1744791033149,-500.0,0.00025099,2]
[358155324,1744791033159,-500.0,0.00025099,2]
[358155325,1744791033169,-500.0,0.00025099,2]
[358155326,1744791033179,-500.0,0.00025099,2]
[358155327,1744791033188,-500.0,0.00025099,2]
[358155328,1744791033198,-500.0,0.00025099,2]
[358155329,1744791033208,-500.0,0.00025099,2]
[358155330,1744791033217,-500.0,0.00025099,2]
[358155331,1744791033226,-500.0,0.00025099,2]
[358155332,1744791033236,-500.0,0.00025099,2]
[358155333,1744791033245,-500.0,0.00025099,2]
[358155334,1744791033255,-500.0,0.00025099,2]
[358155335,1744791033265,-500.0,0.00025099,2]
[358155336,1744791033274,-500.0,0.00025099,2]
[358155337,1744791033284,-500.0,0.00025099,2]
[358155338,1744791033293,-500.0,0.00025099,2]
[358155339,1744791033303,-500.0,0.00025099,2]
[358155340,1744791033312,-500.0,0.00025099,2]
[358155341,1744791033323,-500.0,0.00025099,2]
[358155342,1744791033332,-500.0,0.00025099,2]
[358155343,1744791033344,-484.28785174,0.00025099,2]
[358155344,1744791033353,-500.0,0.00025099,2]
[358155345,1744791033363,-500.0,0.00025099,2]
[358155346,1744791033373,-300.0,0.00025099,2]
[358155347,1744791033383,-50036.92,0.000251,2]
[358155348,1744791033393,-507.56067956,0.000251,2]
[358155349,1744791033403,-160.0,0.000252,2]
[358155350,1744791033415,-12.54626401,0.00027,3]
[358155351,1744791033425,-420.0,0.00027188,2]
[358155352,1744791033435,-587.0,0.0002945,2]
[358155353,1744791033445,-212.0,0.0003,2]
[358155354,1744791033455,-823.0,0.00031901,2]
[358155355,1744791033465,-740.5920688,0.0003474,2]
[358155356,1744791033475,-318.51715882,0.000359,12]
[358155357,1744791033484,-1000.0,0.00036133,2]
[358155358,1744791033495,-318.51715881,0.00036279,13]
[358155359,1744791033504,-318.51715881,0.00036659,13]
[358155360,1744791033513,-318.51715881,0.00037038,13]
[358155361,1744791033522,-318.51715881,0.00037417,13]
[358155362,1744791033532,-212.0,0.00037588,2]
[358155363,1744791033541,-318.51715881,0.00037797,14]
[358155364,1744791033551,-400.0,0.00038173,3]
[358155365,1744791033560,-318.51715881,0.00038176,14]
[358155366,1744791033570,-318.51715881,0.00038555,14]
[358155367,1744791033579,-318.51715881,0.00038934,14]
[358155368,1744791033589,-402.0,0.00039285,2]
[358155369,1744791033599,-318.51715881,0.00039314,15]
[358155370,1744791033608,-318.51715881,0.00039693,15]
[358155371,1744791033618,-500.0,0.00039726,7]
[358155372,1744791033628,-383.79677546,0.00039726,7]
[358155373,1744791033637,-500.0,0.00039726,7]
[358155374,1744791033648,-500.0,0.00039726,7]
[358155375,1744791033658,-500.0,0.00039726,7]
[358155376,1744791033668,-500.0,0.00039726,7]
[358155377,1744791033678,-500.0,0.00039726,7]
[358155378,1744791033689,-500.0,0.00039726,7]
[358155379,1744791033699,-500.0,0.00039726,7]
[358155380,1744791033710,-318.51715881,0.00040072,15]
[358155381,1744791033721,-16842.34219635,0.00040235,6]
[358155382,1744791033735,-318.51715881,0.00040452,15]
[358155383,1744791033746,-318.51715881,0.00040831,16]
[358155384,1744791033755,-150.543,0.00040884,2]
[358155385,1744791033766,-304.33742786,0.000409,2]
[358155386,1744791033777,-560.0,0.0004095,5]
[358155387,1744791033788,-212.0,0.00040994,2]
[358155388,1744791033799,-181.50632044,0.00040994,31]
[358155389,1744791033809,-504.48028594,0.00040994,31]
[358155390,1744791033820,-425.40606153,0.00040994,31]
[358155391,1744791033831,-3763.96825479,0.00040995,2]
[358155392,1744791033845,-16255.33177316,0.00040995,2]
[358155427,1744791038994,-500.0,0.00025099,2]
[358155428,1744791039004,-500.0,0.00025099,2]
[358155429,1744791039015,-500.0,0.00025099,2]
[358155430,1744791039025,-500.0,0.00025099,2]
[358155431,1744791039036,-502.41640037,0.00025099,2]
[358155432,1744791039047,-160.0,0.00034456,2]
[358155433,1744791039056,-500.0,0.00039726,7]
[358155434,1744791039065,-500.0,0.00039726,7]
[358155435,1744791039075,-500.0,0.00039726,7]
[358155436,1744791039084,-160410.15454755,0.00040995,2]
[358155437,1744791039095,-100342.941879,0.00040995,2]
[358155438,1744791039118,-26404.65097584,0.00040995,2]
[358155439,1744791039130,-3597.75664121,0.00040995,2]
[358155440,1744791039154,-831.73,0.00040995,2]
[358155454,1744791041054,-432.27611208,0.00040995,2]
[358155455,1744791041067,-249.993024,0.00040995,2]
[358155469,1744791043737,-205.71809773,0.00038895,2]
[358155470,1744791043747,-14634.14818818,0.00040995,2]
[358155503,1744791046670,-250.0,0.00035139,2]
[358155504,1744791046680,-652.97666268,0.00040995,2]
[358155505,1744791046692,-831.6991683,0.00040995,2]
[358155517,1744791456270,230.15819044,0.00033,30]
[358155518,1744791569930,999.999999,0.00033,120]
[358155527,1744792063128,-151.25,0.000229,2]
[358155551,1744792095697,409.36279209,0.0001399,2]
[358155552,1744792095862,-427.91501852,0.00019205,5]
[358155553,1744792101178,579.16501852,0.00033,30]
[358155554,1744792120159,-213.775959,0.0002,7]
[358155556,1744792131980,213.775959,0.00033,30]
[358155561,1744792159738,1000.0,0.00033,30]
[358155647,1744792232707,-637.08162732,0.00019205,5]
[358155653,1744792232765,-952.42133585,0.00019205,5]
[358155655,1744792232776,-14.23821127,0.0002,7]
[358155656,1744792232786,-209.65682794,0.00022,2]
[358155657,1744792232797,-1316.24,0.000248,2]
[358155658,1744792232806,-500.000001,0.000249,2]
[358155659,1744792232816,-75.04068398,0.00024999,2]
[358155660,1744792232861,-224.95931602,0.00024999,2]
[358155661,1744792232871,-300.0,0.00024999,2]
[358155662,1744792232881,-1373.47,0.00025,2]
[358155663,1744792232891,-7088.88628652,0.00025,2]
[358155664,1744792232902,-22209.36800318,0.000256,2]
[358155666,1744792232912,-250.0,0.00025671,2]
[358155668,1744792232922,-197.7838839,0.00026624,2]
[358155670,1744792232932,-420.0,0.00027082,2]
[358155672,1744792232942,-420.0,0.00027205,2]
[358155675,1744792232952,-500.0,0.00027565,2]
[358155677,1744792232965,-500.0,0.00027565,2]
[358155679,1744792232975,-534.90610227,0.00027565,2]
[358155680,1744792232985,-500.0,0.00027565,2]
[358155682,1744792232994,-500.0,0.00027565,2]
[358155685,1744792233004,-193.80844159,0.00027565,2]
[358155687,1744792233014,-500.0,0.00027565,2]
[358155689,1744792233024,-500.0,0.00027565,2]
[358155690,1744792233034,-500.0,0.00027565,2]
[358155691,1744792233046,-500.0,0.00027565,2]
[358155692,1744792233057,-500.0,0.00027565,2]
[358155694,1744792233067,-500.0,0.00027565,2]
[358155696,1744792233077,-500.0,0.00027565,2]
[358155698,1744792233088,-500.0,0.00027565,2]
[358155700,1744792233102,-500.0,0.00027565,2]
[358155702,1744792233112,-500.0,0.00027565,2]
[358155704,1744792233123,-152.0,0.00027566,2]
[358155706,1744792233135,-1064.32553502,0.00027649,2]
[358155708,1744792233146,-192.0,0.00028186,2]
[358155710,1744792233156,-1000.0,0.00028196,2]
[358155712,1744792233166,-500.0,0.00028999,2]
[358155714,1744792233176,-6000.0,0.00029,2]
[358155716,1744792233188,-158.62353808,0.00029,5]
[358155718,1744792233198,-500.0,0.00029,5]
[358155720,1744792233211,-500.0,0.00029,5]
[358155722,1744792233221,-500.0,0.00029,5]
[358155724,1744792233231,-501.61598493,0.00029,2]
[358155726,1744792233242,-500.0,0.00029,5]
[358155729,1744792233252,-500.51340594,0.00029,5]
[358155731,1744792233263,-500.0,0.00029,5]
[358155733,1744792233273,-500.0,0.00029,5]
[358155735,1744792233283,-500.0,0.00029,5]
[358155737,1744792233293,-587.0,0.00029339,2]
[358155739,1744792233303,-587.0,0.00029605,2]
[358155741,1744792233313,-297.78424307,0.00030168,2]
[358155743,1744792233324,-500.0,0.00030168,2]
[358155745,1744792233333,-414.38295444,0.00030168,2]
[358155747,1744792233344,-24900.0,0.00030169,2]
[358155749,1744792233355,-357.0,0.00031784,2]
[358155751,1744792233367,-483.0,0.00032218,3]
[358155753,1744792233377,-11145.3829208,0.00034278,2]
[358155755,1744792233387,-160.0,0.00034288,7]
[358155757,1744792233397,-12553.36997132,0.00034289,7]
[358155759,1744792233407,-838.91012072,0.0003429,2]
[358155761,1744792233417,-160.0,0.0003429,2]
[358155763,1744792233428,-160.0,0.0003429,2]
[358155765,1744792233438,-462.9882562,0.00034479,5]
[358155767,1744792233448,-750.08127803,0.00034479,5]
[358155769,1744792233461,-404.21263437,0.0003487,2]
[358155771,1744792233472,-726.88131,0.00034945,30]
[358155773,1744792233482,-1631.37430727,0.00035,10]
[358155775,1744792233492,-11145.3829208,0.0003699,3]
[358155777,1744792233502,-160.0,0.0003699,3]
[358155779,1744792233513,-12553.36997132,0.0003699,3]
[358155781,1744792233524,-14330.76626699,0.00037,2]
[358155783,1744792233534,-242.17189602,0.00037996,50]
[358155784,1744792233545,-150.0,0.00038895,2]
[358155785,1744792233555,-1001.09105208,0.00039017,15]
[358155786,1744792233565,-500.0,0.00039726,7]
[358155787,1744792233812,-153.75519727,0.00039726,7]
[358155788,1744792233838,-151.25,0.000399,30]
[358155789,1744792233849,-383.3178641,0.00040273,4]
[358155790,1744792233859,-500.0,0.00040873,5]
[358155791,1744792233868,-373.55543027,0.00040873,2]
[358155792,1744792233878,-160.12470721,0.00040873,2]
[358155793,1744792233888,-543.0,0.00040874,2]
[358155794,1744792233897,-852.763,0.00040874,2]
[358155795,1744792233907,-2260.0,0.00040874,2]
[358155796,1744792233917,-160.0,0.00040875,3]
[358155797,1744792233927,-160.0,0.00040875,3]
[358155798,1744792233937,-500.0,0.0004088,14]
[358155799,1744792233947,-500.0,0.0004088,14]
[358155800,1744792233959,-500.0,0.0004088,14]
[358155801,1744792233969,-500.0,0.0004088,14]
[358155802,1744792233979,-22290.7658416,0.00040885,3]
[358155803,1744792233989,-89163.0633665,0.00040885,3]
[358155804,1744792233998,-160.0,0.00040885,3]
[358155805,1744792234008,-419.08857115,0.00040891,2]
[358155806,1744792234017,-66287.62252956,0.00040895,2]
[358155807,1744792234027,-8636.42569026,0.00040895,3]
[358155808,1744792234038,-370000.0,0.00040895,2]
[358155809,1744792234047,-12553.36997132,0.00040901,2]
[358155810,1744792234057,-160.0,0.00040994,2]
[358155811,1744792234067,-1631.91,0.00041,30]
[358155812,1744792234076,-150.0,0.00041,120]
[358155813,1744792234086,-150.0,0.00041,30]
[358155814,1744792234096,-150.0,0.00041,2]
[358155815,1744792234108,-1499.999998,0.00041,120]
[358155816,1744792234118,-500.0,0.00041,15]
[358155817,1744792234127,-11145.3829208,0.00041063,3]
[358155818,1744792234138,-166.0,0.00041069,14]
[358155819,1744792234148,-166.0,0.00041069,14]
[358155820,1744792234157,-166.0,0.00041069,14]
[358155821,1744792234166,-166.0,0.00041069,14]
[358155822,1744792234177,-172.0,0.00041069,14]
[358155823,1744792234187,-467.65057456,0.00041069,14]
[358155824,1744792234196,-360.2600692,0.00041073,5]
[358155825,1744792234206,-510.9937301,0.00041073,4]
[358155826,1744792234216,-500.0,0.00041073,5]
[358155827,1744792234225,-500.0,0.00041073,5]
[358155828,1744792234235,-302.65368455,0.00041073,5]
[358155829,1744792234244,-500.0,0.00041073,5]
[358155830,1744792234254,-500.0,0.00041073,5]
[358155831,1744792234263,-500.0,0.00041073,5]
[358155832,1744792234273,-500.0,0.00041073,5]
[358155833,1744792234283,-201.77162603,0.00041073,5]
[358155834,1744792234293,-529.11938369,0.00041073,5]
[358155835,1744792234303,-503.01758433,0.00041073,5]
[358155836,1744792234313,-507.50345316,0.00041073,5]
[358155837,1744792234323,-176.26653802,0.00041073,5]
[358155838,1744792234332,-500.0,0.00041073,5]
[358155839,1744792234342,-503.40422162,0.00041073,5]
[358155840,1744792234352,-503.8733738,0.00041073,5]
[358155841,1744792234362,-200.0,0.00041073,5]
[358155842,1744792234371,-503.98528822,0.00041073,5]
[358155843,1744792234381,-421.09955147,0.00041073,5]
[358155844,1744792234391,-501.19771925,0.00041073,5]
[358155845,1744792234401,-500.0,0.00041073,5]
[358155846,1744792234411,-501.23834691,0.00041073,5]
[358155847,1744792234421,-609.76166797,0.00041073,5]
[358155848,1744792234431,-500.0,0.00041073,5]
[358155849,1744792234440,-500.0,0.00041073,5]
[358155850,1744792234449,-506.14561435,0.00041073,5]
[358155851,1744792234460,-511.77036317,0.00041073,5]
[358155852,1744792234470,-500.0,0.00041073,5]
[358155853,1744792234480,-505.17853219,0.00041073,5]
[358155854,1744792234490,-210.95631252,0.00041073,5]
[358155855,1744792234499,-500.0,0.00041073,5]
[358155856,1744792234509,-506.19219414,0.00041073,5]
[358155857,1744792234519,-500.0,0.00041073,5]
[358155858,1744792234529,-65910.61530143,0.00041085,3]
[358155885,1744792238874,-449.73454448,0.000259,6]
[358155886,1744792238883,-381.99961889,0.0002659,6]
[358155887,1744792238894,-67.73492545,0.0002659,6]
[358155888,1744792238904,-449.73454434,0.00027279,7]
[358155889,1744792238913,-500.0,0.00027565,2]
[358155890,1744792238922,-500.0,0.00027565,2]
[358155891,1744792238931,-262.53053019,0.00027565,2]
[358155892,1744792238942,-237.46946981,0.00027565,2]
[358155893,1744792238951,-468.46816287,0.00027565,2]
[358155894,1744792238962,-31.53183713,0.00027565,2]
[358155895,1744792238971,-500.0,0.00027565,2]
[358155896,1744792238980,-500.0,0.00027565,2]
[358155897,1744792238989,-500.0,0.00027565,2]
[358155898,1744792238998,-500.0,0.00027565,2]
[358155899,1744792239007,-500.0,0.00027565,2]
[358155900,1744792239016,-500.0,0.00027565,2]
[358155901,1744792239026,-500.0,0.00027565,2]
[358155902,1744792239035,-500.0,0.00027565,2]
[358155903,1744792239044,-500.0,0.00027565,2]
[358155904,1744792239052,-500.0,0.00027565,2]
[358155906,1744792239062,-500.0,0.00027565,2]
[358155908,1744792239076,-500.0,0.00027565,2]
[358155910,1744792239085,-500.0,0.00027565,2]
[358155912,1744792239095,-382.79977405,0.00027565,2]
[358155914,1744792239108,-500.0,0.00027565,2]
[358155916,1744792239118,-500.0,0.00027565,2]
[358155917,1744792239127,-500.0,0.00027565,2]
[358155919,1744792239138,-500.0,0.00027565,2]
[358155921,1744792239149,-500.0,0.00027565,2]
[358155922,1744792239158,-500.0,0.00027565,2]
[358155923,1744792239168,-500.0,0.00027565,2]
[358155924,1744792239178,-500.0,0.00027565,2]
[358155925,1744792239187,-500.0,0.00027565,2]
[358155926,1744792239197,-500.0,0.00027565,2]
[358155927,1744792239206,-500.0,0.00027565,2]
[358155928,1744792239216,-500.0,0.00027565,2]
[358155929,1744792239226,-500.0,0.00027565,2]
[358155930,1744792239235,-361.79633843,0.00027565,2]
[358155931,1744792239245,-500.0,0.00027565,2]
[358155932,1744792239255,-500.0,0.00027565,2]
[358155933,1744792239265,-568.78576126,0.00027565,2]
[358155934,1744792239275,-500.0,0.00027565,2]
[358155935,1744792239283,-500.0,0.00027565,2]
[358155936,1744792239293,-500.0,0.00027565,2]
[358155937,1744792239304,-500.0,0.00027565,2]
[358155938,1744792239313,-500.0,0.00027565,2]
[358155939,1744792239323,-500.0,0.00027565,2]
[358155940,1744792239332,-500.0,0.00027565,2]
[358155941,1744792239341,-500.0,0.00027565,2]
[358155942,1744792239350,-500.0,0.00027565,2]
[358155943,1744792239359,-500.0,0.00027565,2]
[358155944,1744792239369,-500.0,0.00027565,2]
[358155945,1744792239378,-500.0,0.00027565,2]
[358155946,1744792239387,-500.0,0.00027565,2]
[358155947,1744792239396,-500.0,0.00027565,2]
[358155948,1744792239406,-500.0,0.00027565,2]
[358155949,1744792239415,-449.73454434,0.00027969,7]
[358155950,1744792239425,-449.73454434,0.00028659,8]
[358155951,1744792239435,-449.73454434,0.00029348,8]
[358155952,1744792239444,-449.73454434,0.00030038,9]
[358155953,1744792239453,-449.73454434,0.00030728,9]
[358155954,1744792239465,-449.73454434,0.00031417,9]
[358155955,1744792239475,-449.73454434,0.00032107,10]
[358155956,1744792239484,-449.73454434,0.00032797,10]
[358155957,1744792239493,-449.73454434,0.00033486,11]
[358155958,1744792239505,-449.73454434,0.00034176,11]
[358155959,1744792239515,-449.73454434,0.00034866,12]
[358155960,1744792239525,-449.73454434,0.00035555,12]
[358155961,1744792239535,-449.73454434,0.00036245,13]